bitfinex/quotes_SOLUSD_20240816
["timestamp","ask_amount","ask_price","bid_price","bid_amount"]
[1723790225017,25.82,144.49,144.39,9.84339093]
[1723790225345,25.82,144.49,144.4,4.8746824]
[1723790225545,25.82,144.49,144.41,2.20524618]
[1723790225841,25.82,144.49,144.39,4.96870853]
[1723790226022,25.82,144.49,144.4,4.87540821]
[1723790226023,6.9218,144.47,144.4,4.87540821]
[1723790226232,20.0,144.46,144.41,2.07986226]
[1723790226543,20.0,144.46,144.39,4.96870853]
[1723790226842,20.0,144.46,144.4,4.87579005]
[1723790227048,20.0,144.46,144.39,4.96866478]
[1723790227234,20.0,144.46,144.4,4.87586306]
[1723790227429,20.0,144.46,144.41,2.07985294]
[1723790227629,20.0,144.46,144.39,0.25098]
[1723790227846,20.0,144.46,144.4,4.87597819]
[1723790228141,20.0,144.46,144.41,2.07986287]
[1723790228339,26.9223,144.46,144.39,0.25098]
[1723790228546,6.9229,144.45,144.38,12.4741153]
[1723790228738,7.04839,144.45,144.39,4.87754523]
[1723790229042,7.04839,144.45,144.4,2.07994104]
[1723790229222,7.04839,144.45,144.38,12.47443356]
[1723790229422,0.12549,144.45,144.39,4.87781694]
[1723790229635,26.9223,144.46,144.4,4.87781694]
[1723790229841,26.9223,144.46,144.38,12.47443356]
[1723790230032,26.9223,144.46,144.39,5.12881769]
[1723790230237,26.9223,144.46,144.4,2.08001466]
[1723790230418,26.9223,144.46,144.41,2.07987733]
[1723790230419,20.0,144.46,144.41,2.07987733]
[1723790230619,20.0,144.46,144.39,26.61618337]
[1723790230828,20.0,144.46,144.4,4.87706038]
[1723790231146,20.0,144.46,144.41,4.87706038]
[1723790231444,20.0,144.46,144.39,6.6161999]
[1723790231629,20.0,144.46,144.4,4.87649004]
[1723790231827,25.82,144.49,144.42,15.8398]
[1723790232026,25.82,144.49,144.43,2.07959061]
[1723790232227,25.82,144.49,144.42,15.8398]
[1723790232429,25.82,144.51,144.43,2.07955513]
[1723790232627,32.7403,144.51,144.44,11.41331092]
[1723790232839,8.024e-05,144.53,144.44,6.53909]
[1723790232840,25.82008024,144.53,144.44,6.53909]
[1723790233151,8.024e-05,144.53,144.46,15.0746]
[1723790233954,8.024e-05,144.53,144.47,0.25098]
[1723790234128,8.024e-05,144.53,144.46,15.0746]
[1723790234129,6.91908024,144.53,144.46,15.0746]
[1723790234522,6.91908024,144.53,144.47,20.0]
[1723790234523,8.024e-05,144.53,144.47,20.0]
[1723790234927,8.024e-05,144.53,144.46,15.0746]
[1723790235147,25.82008024,144.53,144.46,15.0746]
[1723790235753,27.04499,144.52,144.46,15.0746]
[1723790236051,20.12549,144.52,144.46,15.0746]
[1723790236260,8.024e-05,144.53,144.47,0.12549]
[1723790236859,8.024e-05,144.53,144.47,0.25098]
[1723790237537,6.91928024,144.53,144.46,15.0746]
[1723790237762,20.12549,144.52,144.46,15.0746]
[1723790237955,27.55028915,144.51,144.46,15.0746]
[1723790238958,8.65073532,144.5,144.46,15.0746]
[1723790239125,1.73052074,144.49,144.46,15.0746]
[1723790239331,6.9213,144.48,144.46,15.0746]
[1723790239533,6.9232,144.45,144.42,6.35947184]
[1723790239838,6.9232,144.44,144.42,6.35947184]
[1723790240238,6.9232,144.44,144.4,6.5337]
[1723790240438,32.7437,144.43,144.39,15.4689]
[1723790240957,0.25098,144.44,144.37,7.24055972]
[1723790240958,25.82,144.41,144.37,7.24055972]
[1723790241833,7.04969,144.42,144.37,7.24055972]
[1723790242038,0.12549,144.41,144.37,7.24055972]
[1723790244035,28.78185681,144.41,144.37,7.24055972]
[1723790244541,27.05029,144.41,144.37,7.24055972]
[1723790244743,20.12549,144.41,144.37,7.24055972]
[1723790244946,1.73162902,144.4,144.36,6.6407]
[1723790245474,34.01162091,144.39,144.35,15.4689]
[1723790245631,0.25098,144.38,144.32,21.9581]
[1723790245831,20.25098,144.38,144.32,21.9581]
[1723790246548,27.17718,144.38,144.32,21.9581]
[1723790246764,6.9266,144.37,144.32,21.9581]
[1723790246971,7.05269,144.36,144.32,21.9581]
[1723790247270,39.2066,144.37,144.32,21.9581]
[1723790247458,20.0,144.36,144.32,21.9581]
[1723790247874,6.9251,144.41,144.32,21.9581]
[1723790248050,20.0,144.4,144.33,20.0]
[1723790248364,6.9244,144.42,144.33,20.0]
[1723790248591,6.9244,144.42,144.35,20.0]
[1723790248798,6.9237,144.43,144.35,20.0]
[1723790249379,56.0121,144.48,144.35,40.0]
[1723790249569,6.9218,144.47,144.39,22.1773]
[1723790249767,6.9218,144.47,144.4,0.12549]
[1723790250091,32.28,144.48,144.39,22.1773]
[1723790250092,6.9225,144.46,144.39,22.1773]
[1723790250608,6.9229,144.45,144.39,22.1773]
[1723790250765,20.0,144.44,144.39,22.1773]
[1723790251397,26.9233,144.44,144.39,22.1773]
[1723790251565,0.25098,144.43,144.36,6.4686]
[1723790251763,6.9247,144.41,144.36,6.4686]
[1723790252269,6.9242,144.42,144.36,6.4686]
[1723790252497,20.12549,144.41,144.36,6.4686]
[1723790253997,20.0,144.41,144.36,6.4686]
[1723790254202,20.0,144.42,144.36,6.4686]
[1723790256005,26.9242,144.42,144.36,6.4686]
[1723790256201,7.05029,144.41,144.36,6.4686]
[1723790257378,7.05029,144.41,144.35,16.3951]
[1723790257379,7.05109,144.39,144.35,16.3951]
[1723790257574,0.12549,144.38,144.35,16.3951]
[1723790258282,7.05159,144.38,144.32,21.4222]
[1723790259579,0.12549,144.38,144.32,21.4222]
[1723790259910,7.05109,144.39,144.32,21.4222]
[1723790260272,20.0,144.38,144.33,0.34643393]
[1723790260475,20.0,144.38,144.32,41.4222]
[1723790260705,20.0,144.4,144.33,0.25098]
[1723790260999,26.9252,144.4,144.33,0.25098]
[1723790262194,20.0,144.4,144.33,0.25098]
[1723790262512,6.9257,144.39,144.32,21.4222]
[1723790262680,32.88119,144.39,144.32,21.4222]
[1723790263982,7.05159,144.38,144.32,21.4222]
[1723790264183,45.95549,144.37,144.32,21.4222]
[1723790264387,25.83,144.35,144.26,42.0576]
[1723790264812,6.9275,144.36,144.27,7.24515086]
[1723790264982,0.12549,144.35,144.27,7.24515086]
[1723790265177,27.05309,144.35,144.27,7.24515086]
[1723790265378,20.12549,144.35,144.27,7.24515086]
[1723790265688,20.0,144.35,144.27,7.24515086]
[1723790266592,20.0,144.35,144.28,0.25098]
[1723790268990,26.9276,144.35,144.28,0.25098]
[1723790269201,1.73229399,144.34,144.27,7.24515086]
[1723790269400,6.9285,144.33,144.27,7.24515086]
[1723790269600,25.83,144.33,144.26,22.0576]
[1723790269923,20.0,144.32,144.26,22.0576]
[1723790270098,1.73265854,144.31,144.26,22.0576]
[1723790270413,25.95549,144.31,144.26,22.0576]
[1723790270588,0.12549,144.3,144.26,22.0576]
[1723790270983,20.12549,144.3,144.26,22.0576]
[1723790271616,27.05589,144.3,144.26,22.0576]
[1723790274422,20.12549,144.3,144.23,7.24722921]
[1723790275024,27.05549,144.3,144.23,7.24722921]
[1723790275232,6.9309,144.28,144.23,7.24722921]
[1723790275435,6.9309,144.28,144.22,22.9263]
[1723790276016,6.9315,144.27,144.22,22.9263]
[1723790277055,6.932,144.26,144.22,22.9263]
[1723790277432,6.932,144.26,144.17,22.5488]
[1723790277636,7.05799,144.25,144.17,29.79408186]
[1723790277822,6.9329,144.24,144.17,29.79408186]
[1723790278452,32.88799,144.25,144.17,29.79408186]
[1723790278857,32.88799,144.25,144.2,6.9347]
[1723790279230,25.95549,144.25,144.21,6.9339]
[1723790279449,6.9319,144.26,144.21,6.9339]
[1723790279746,20.0,144.25,144.21,6.9339]
[1723790281345,25.83,144.29,144.19,40.0]
[1723790281552,25.83,144.29,144.23,6.933]
[1723790281863,25.83,144.29,144.24,6.9325]
[1723790282033,6.9309,144.28,144.24,6.9325]
[1723790282238,6.9305,144.29,144.24,6.9325]
[1723790282453,6.931,144.28,144.24,6.9325]
[1723790283171,20.0,144.27,144.24,6.9325]
[1723790283476,20.0,144.27,144.2,0.12549]
[1723790283649,25.83,144.25,144.17,29.79408186]
[1723790284570,32.7625,144.25,144.2,6.9347]
[1723790284771,32.7625,144.25,144.17,29.79408186]
[1723790285359,25.83,144.25,144.17,29.79408186]
[1723790285566,0.12549,144.24,144.17,22.5488]
[1723790285769,6.9343,144.22,144.17,29.4849]
[1723790286114,21.73384083,144.21,144.17,29.4849]
[1723790286262,20.0,144.21,144.17,29.4849]
[1723790286666,20.0,144.21,144.17,23.1355]
[1723790286974,6.9343,144.21,144.17,23.1355]
[1723790287181,32.7643,144.21,144.16,6.9367]
[1723790287881,20.12549,144.22,144.15,7.25201688]
[1723790288256,20.12549,144.22,144.18,6.9357]
[1723790288676,25.83,144.25,144.15,27.25201688]
[1723790288887,20.0,144.24,144.21,6.9343]
[1723790289071,6.932,144.26,144.21,6.9342]
[1723790289278,6.932,144.26,144.18,0.35035569]
[1723790289279,6.9324,144.25,144.2,6.9346]
[1723790290393,27.05839,144.24,144.19,6.9352]
[1723790292385,27.05839,144.24,144.2,6.9347]
[1723790292884,20.12549,144.24,144.2,6.9347]
[1723790293182,20.12549,144.26,144.2,6.9347]
[1723790293357,0.12549,144.25,144.2,6.9347]
[1723790293953,0.12549,144.24,144.19,6.9352]
[1723790294358,7.05869,144.24,144.19,6.9352]
[1723790294658,20.0,144.23,144.19,6.9352]
[1723790294869,20.0,144.23,144.2,22.5257]
[1723790295077,20.0,144.25,144.21,6.9342]
[1723790295459,26.9324,144.25,144.21,6.9342]
[1723790295890,25.83,144.29,144.2,22.5257]
[1723790296060,6.9315,144.27,144.23,6.9329]
[1723790297384,20.0,144.26,144.23,6.9329]
[1723790298975,20.0,144.26,144.22,6.9337]
[1723790299768,1.73321832,144.25,144.22,6.9337]
[1723790299968,20.0,144.26,144.2,22.5257]
[1723790299969,26.932,144.26,144.21,6.9342]
[1723790300265,20.0,144.26,144.22,0.34999434]
[1723790300471,6.9299,144.31,144.22,20.0]
[1723790300669,6.9299,144.31,144.23,0.25098]
[1723790300972,6.9299,144.31,144.26,6.9314]
[1723790301276,6.9291,144.32,144.27,6.9309]
[1723790302161,6.93,144.3,144.23,0.25098]
[1723790302365,6.9305,144.29,144.22,0.25098]
[1723790302587,6.9305,144.29,144.21,0.25098]
[1723790303086,32.76,144.3,144.21,20.60042615]
[1723790303682,32.76,144.3,144.21,20.25098]
[1723790305076,7.18058,144.31,144.23,20.0]
[1723790305276,25.83,144.34,144.25,15.7924]
[1723790305482,25.83,144.34,144.26,6.3804]
[1723790305483,6.9291,144.32,144.26,6.3804]
[1723790306074,6.9291,144.32,144.27,0.34828705]
[1723790306286,6.9291,144.32,144.26,6.3804]
[1723790307498,0.12549,144.33,144.27,0.34830274]
[1723790308094,20.0,144.33,144.26,6.50589]
[1723790308297,20.0,144.33,144.27,0.25098]
[1723790308681,26.9286,144.33,144.27,0.12549]
[1723790309009,26.9286,144.33,144.26,6.3804]
[1723790309010,25.83,144.32,144.26,6.3804]
[1723790309170,20.12549,144.31,144.26,6.3804]
[1723790310198,6.93,144.3,144.26,6.3804]
[1723790310769,20.12549,144.31,144.26,6.3804]
[1723790311264,6.9319,144.26,144.23,2.08209229]
[1723790311464,6.9319,144.26,144.22,15.8692]
[1723790311465,25.83,144.26,144.22,15.8692]
[1723790311665,6.9329,144.24,144.19,2.08254708]
[1723790311972,6.9329,144.24,144.19,2.80623595]
[1723790312167,6.9329,144.24,144.18,25.05423595]
[1723790312383,6.9329,144.24,144.19,2.08265001]
[1723790312588,6.9329,144.24,144.2,6.9347]
[1723790314270,20.25098,144.25,144.2,6.9347]
[1723790314271,27.18338,144.25,144.2,6.9347]
[1723790314476,27.18338,144.25,144.21,6.9342]
[1723790314477,20.12549,144.25,144.21,6.9342]
[1723790314675,27.05789,144.25,144.21,6.9342]
[1723790316188,27.05789,144.25,144.2,9.0173886]
[1723790316402,20.12549,144.25,144.21,6.9342]
[1723790316581,20.0,144.25,144.21,6.9342]
[1723790317094,20.0,144.25,144.22,0.35010102]
[1723790317276,20.0,144.29,144.21,3.15741619]
[1723790317476,6.931,144.28,144.22,4.88989884]
[1723790317677,20.0,144.27,144.23,6.9332]
[1723790318096,20.0,144.27,144.2,4.8621432]
[1723790318097,20.0,144.27,144.22,9.01614136]
[1723790318293,6.4018,144.32,144.21,9.01669106]
[1723790318294,6.9319,144.26,144.21,9.01669106]
[1723790318499,6.9319,144.26,144.21,6.9341]
[1723790318716,0.12549,144.25,144.21,6.9341]
[1723790321517,0.12549,144.25,144.2,2.80726449]
[1723790321518,6.9329,144.24,144.2,2.80726449]
[1723790321680,6.9329,144.24,144.18,26.98464198]
[1723790321883,6.9329,144.24,144.19,11.82537537]
[1723790322108,20.0,144.23,144.2,4.89027875]
[1723790322399,20.0,144.23,144.19,6.9352]
[1723790322594,26.9334,144.23,144.2,4.89035599]
[1723790322909,26.9334,144.23,144.18,27.54167085]
[1723790323076,0.12549,144.22,144.19,11.82574223]
[1723790323278,20.0,144.23,144.2,4.89053401]
[1723790323476,20.0,144.23,144.19,6.9351]
[1723790323693,20.0,144.23,144.2,2.08267464]
[1723790323903,20.0,144.23,144.2,6.9347]
[1723790324100,20.12549,144.25,144.2,6.9347]
[1723790324318,27.05789,144.25,144.21,9.01690961]
[1723790324490,27.05789,144.25,144.21,6.9343]
[1723790324816,27.05789,144.25,144.2,6.9347]
[1723790325318,25.83,144.3,144.21,11.14304229]
[1723790325610,25.83,144.3,144.22,4.88906513]
[1723790325821,32.2318,144.32,144.26,6.9318]
[1723790325987,6.93,144.3,144.25,6.932]
[1723790326182,6.9295,144.31,144.27,6.9314]
[1723790326394,6.9295,144.31,144.26,6.9318]
[1723790327620,25.83,144.3,144.24,16.2054]
[1723790327807,6.9325,144.25,144.2,20.77628147]
[1723790328006,6.932,144.26,144.21,4.88978825]
[1723790328310,6.932,144.26,144.22,2.08251368]
[1723790328517,6.932,144.26,144.21,2.80700798]
[1723790328719,6.932,144.26,144.21,6.9339]
[1723790329716,6.932,144.26,144.22,9.01627797]
[1723790330013,0.12549,144.27,144.21,2.80744455]
[1723790330220,0.12549,144.27,144.2,16.0409]
[1723790330221,27.05689,144.27,144.22,6.9336]
[1723790331214,7.05749,144.26,144.21,6.9342]
[1723790331415,0.12549,144.25,144.21,6.9342]
[1723790333895,26.9314,144.27,144.22,6.9338]
[1723790334117,20.0,144.27,144.23,6.9332]
[1723790335596,6.9338,144.22,144.21,4.7367041]
[1723790335922,45.95549,144.22,144.18,2.81066842]
[1723790336129,45.95549,144.22,144.17,4.7367041]
[1723790336413,45.83,144.22,144.18,2.08298609]
[1723790336625,52.7639,144.22,144.16,2.779656]
[1723790336798,52.7639,144.22,144.17,11.79879555]
[1723790336991,52.7639,144.22,144.18,2.08296686]
[1723790337190,6.9343,144.21,144.16,6.9366]
[1723790337621,6.9343,144.21,144.17,4.86270642]
[1723790337798,6.9343,144.21,144.18,2.08296748]
[1723790337998,6.9343,144.21,144.17,2.77987277]
[1723790338202,32.7648,144.2,144.18,2.082993]
[1723790338397,25.83,144.2,144.16,2.77987277]
[1723790338718,20.0,144.19,144.15,15.3604]
[1723790338893,26.9354,144.19,144.15,15.3604]
[1723790339096,26.9354,144.19,144.14,9.71936336]
[1723790339312,26.9354,144.19,144.14,6.9375]
[1723790340198,0.12549,144.21,144.15,2.08345747]
[1723790340405,6.9348,144.2,144.15,6.9371]
[1723790340794,32.7648,144.2,144.15,6.9371]
[1723790341129,25.83,144.2,144.14,2.08350605]
[1723790341302,6.9358,144.18,144.14,2.08350605]
[1723790341623,6.9358,144.18,144.13,6.9378]
[1723790341917,0.25098,144.19,144.15,6.9371]
[1723790342123,7.18628,144.19,144.15,6.9371]
[1723790342292,7.18628,144.19,144.14,6.9375]
[1723790343446,6.9357,144.18,144.14,6.9375]
[1723790343750,6.9357,144.18,144.12,2.08353774]
[1723790343916,6.9357,144.18,144.11,17.4515325]
[1723790344237,6.9357,144.18,144.12,2.08359142]
[1723790344442,6.9363,144.17,144.13,6.938]
[1723790344820,32.7658,144.18,144.13,6.938]
[1723790345024,6.9363,144.17,144.12,9.02208841]
[1723790345231,6.9363,144.17,144.12,6.9385]
[1723790346728,25.83,144.18,144.13,6.938]
[1723790346923,0.12549,144.17,144.13,6.9381]
[1723790347340,7.18728,144.17,144.12,6.9385]
[1723790348243,7.18728,144.17,144.11,17.4515325]
[1723790348244,0.25098,144.17,144.13,6.9378]
[1723790349247,7.18728,144.17,144.13,6.9378]
[1723790350245,7.06179,144.17,144.13,6.9378]
[1723790352523,7.06179,144.17,144.12,6.9386]
[1723790352524,6.9367,144.16,144.12,6.9386]
[1723790352734,0.12549,144.15,144.11,7.7853325]
[1723790353757,6.9363,144.17,144.12,6.9384]
[1723790354135,0.12549,144.16,144.12,6.9384]
[1723790354331,7.18778,144.16,144.11,7.7853325]
[1723790354736,7.06229,144.16,144.11,7.7853325]
[1723790355223,7.06229,144.16,144.12,6.9385]
[1723790355426,6.9361,144.18,144.13,6.938]
[1723790355739,26.9363,144.17,144.13,6.938]
[1723790356050,26.9363,144.17,144.12,6.9385]
[1723790356229,6.9367,144.16,144.12,6.9385]
[1723790358360,27.06179,144.17,144.12,6.9385]
[1723790358564,0.12549,144.16,144.12,6.9385]
[1723790359445,26.9363,144.17,144.12,6.9385]
[1723790360251,26.9363,144.17,144.13,6.938]
[1723790363133,26.9363,144.17,144.12,6.9385]
[1723790363343,7.06229,144.16,144.11,7.7853325]
[1723790363737,6.9372,144.15,144.11,7.7853325]
[1723790363943,7.06219,144.16,144.11,7.7853325]
[1723790364834,0.12549,144.16,144.12,6.9385]
[1723790365066,26.9363,144.17,144.13,6.938]
[1723790365741,20.0,144.17,144.13,6.938]
[1723790365942,58.8023,144.2,144.11,0.8463325]
[1723790365943,6.9353,144.19,144.11,0.8463325]
[1723790366137,41.4648,144.2,144.13,20.0]
[1723790366138,6.9349,144.2,144.13,20.0]
[1723790366336,6.9349,144.2,144.12,0.25098]
[1723790366549,6.9349,144.2,144.13,20.0]
[1723790366968,6.9349,144.2,144.12,0.25098]
[1723790367268,6.9349,144.2,144.16,6.9367]
[1723790371063,7.05989,144.21,144.16,6.9367]
[1723790371235,20.0,144.2,144.16,6.9367]
[1723790373840,30.36,144.2,144.16,6.9367]
[1723790374738,15.6994,144.24,144.14,20.0]
[1723790374938,15.6994,144.24,144.2,6.9347]
[1723790375137,17.2925,144.25,144.21,6.9339]
[1723790375369,17.2925,144.25,144.2,6.9347]
[1723790376470,20.0,144.24,144.2,6.9347]
[1723790376982,10.36,144.23,144.18,6.9357]
[1723790377145,17.2935,144.23,144.18,6.9357]
[1723790377550,17.2935,144.23,144.17,2.08306921]
[1723790377551,6.934,144.22,144.17,9.01916921]
[1723790377756,6.934,144.22,144.17,6.9361]
[1723790377969,6.934,144.22,144.18,6.9356]
[1723790378689,6.9335,144.23,144.18,6.9356]
[1723790378847,27.05849,144.24,144.19,6.9351]
[1723790379048,6.9334,144.23,144.19,6.9351]
[1723790380999,27.05839,144.24,144.19,6.9351]
[1723790381290,26.9329,144.24,144.19,6.9351]
[1723790381693,20.0,144.24,144.2,6.9346]
[1723790384393,20.0,144.24,144.21,6.9342]
[1723790384582,20.0,144.24,144.2,6.9346]
[1723790385592,20.0,144.24,144.21,6.9342]
[1723790385799,20.0,144.24,144.19,20.0]
[1723790385800,26.9329,144.24,144.2,6.9347]
[1723790387083,20.0,144.24,144.2,6.9347]
[1723790388291,20.0,144.24,144.2,26.9347]
[1723790388486,15.4501,144.27,144.22,20.0]
[1723790388676,6.4801,144.29,144.22,20.0]
[1723790388874,13.4107,144.29,144.22,20.0]
[1723790389102,13.4107,144.29,144.23,0.25098]
[1723790389294,13.4107,144.29,144.23,0.12549]
[1723790389692,13.4107,144.29,144.22,20.0]
[1723790390071,9.74994875,144.3,144.22,20.0]
[1723790390072,16.68004875,144.3,144.22,20.0]
[1723790390284,20.0,144.29,144.23,0.25098]
[1723790391097,20.0,144.29,144.23,20.60004398]
[1723790391272,20.0,144.3,144.26,20.0]
[1723790391480,16.3899,144.31,144.26,20.0]
[1723790392495,49.16854875,144.33,144.26,20.0]
[1723790392699,16.34994875,144.33,144.26,20.0]
[1723790392901,16.34994875,144.33,144.25,0.12549]
[1723790392902,6.6,144.33,144.28,20.0]
[1723790393173,6.6,144.33,144.26,20.0]
[1723790393666,20.0,144.32,144.27,0.25098]
[1723790394293,23.0992,144.34,144.28,20.0]
[1723790394692,6.9277,144.35,144.28,20.0]
[1723790395498,6.9277,144.35,144.27,0.25098]
[1723790396307,20.0,144.34,144.27,0.25098]
[1723790398614,42.56854875,144.33,144.26,20.0]
[1723790398791,42.69403875,144.33,144.26,20.0]
[1723790399480,42.69403875,144.33,144.23,16.5099]
[1723790399817,42.69403875,144.33,144.24,20.0]
[1723790399988,42.69403875,144.33,144.25,0.25098]
[1723790400177,0.12549,144.32,144.24,20.0]
[1723790400683,42.69403875,144.33,144.24,60.0]
[1723790400893,42.69403875,144.33,144.24,40.0]
[1723790401294,9.87543875,144.33,144.27,20.0]
[1723790401510,16.80403875,144.33,144.27,20.0]
[1723790402007,7.05409,144.33,144.27,20.0]
[1723790402321,20.0,144.34,144.29,20.0]
[1723790402613,20.0,144.34,144.28,0.12549]
[1723790402810,20.0,144.34,144.24,46.5008]
[1723790402811,26.928,144.34,144.24,46.5008]
[1723790403013,26.928,144.34,144.25,0.25098]
[1723790403184,26.928,144.34,144.19,7.24033926]
[1723790403185,25.89,144.26,144.19,7.24033926]
[1723790403384,25.89,144.23,144.19,7.24033926]
[1723790403692,11.16692216,144.22,144.17,7.24417291]
[1723790403879,21.52692216,144.22,144.17,7.24417291]
[1723790404705,10.36,144.22,144.17,27.24417291]
[1723790405007,6.9323,144.26,144.17,27.24417291]
[1723790405210,37.2924,144.25,144.17,7.24417291]
[1723790405387,37.2924,144.25,144.18,0.25098]
[1723790405590,30.36,144.25,144.18,0.25098]
[1723790405789,30.36,144.25,144.21,6.9338]
[1723790406115,21.73344937,144.25,144.21,6.9338]
[1723790406413,28.66584937,144.25,144.18,0.25098]
[1723790407614,20.0,144.25,144.19,20.0]
[1723790407805,22.42278,144.27,144.2,0.12549]
[1723790407806,22.1718,144.27,144.2,0.12549]
[1723790408114,22.1718,144.27,144.19,0.12549]
[1723790408115,20.0,144.26,144.19,0.12549]
[1723790408790,26.9323,144.26,144.2,20.0]
[1723790408991,25.89,144.28,144.21,20.0]
[1723790409204,1.73315326,144.29,144.21,20.0]
[1723790409419,28.66405326,144.29,144.21,20.0]
[1723790410110,28.66405326,144.29,144.19,20.12549]
[1723790410111,28.66405326,144.29,144.2,20.0]
[1723790410288,28.66405326,144.29,144.21,0.25098]
[1723790410488,0.12549,144.28,144.21,0.25098]
[1723790410717,1.8586433,144.28,144.21,0.25098]
[1723790411520,34.6795433,144.28,144.21,0.25098]
[1723790411902,34.6795433,144.28,144.2,0.25098]
[1723790412425,25.89,144.26,144.2,0.12549]
[1723790412722,25.89,144.26,144.19,0.25098]
[1723790412723,1.73336516,144.25,144.19,0.25098]
[1723790413026,1.73336516,144.25,144.19,0.12549]
[1723790413315,32.94759,144.26,144.18,22.08261959]
[1723790413509,32.94759,144.26,144.2,20.0]
[1723790413714,32.94759,144.26,144.18,22.08261959]
[1723790414223,26.01549,144.26,144.19,2.08261959]
[1723790414523,0.12549,144.26,144.21,20.0]
[1723790414702,0.12549,144.27,144.21,20.0]
[1723790415419,1.73317318,144.27,144.21,20.0]
[1723790415634,32.821,144.28,144.21,20.0]
[1723790415805,1.73320466,144.28,144.23,20.0]
[1723790416124,20.0,144.29,144.22,22.7112]
[1723790416590,32.8196,144.31,144.22,22.7112]
[1723790416591,20.0,144.3,144.22,22.7112]
[1723790416798,20.0,144.3,144.25,20.0]
[1723790418252,25.89,144.31,144.25,20.0]
[1723790418424,0.12549,144.3,144.25,20.0]
[1723790419927,0.12549,144.31,144.25,20.0]
[1723790421235,16.4234,144.34,144.27,20.0]
[1723790421520,20.0,144.33,144.29,20.0]
[1723790421740,16.4234,144.34,144.29,20.0]
[1723790422048,16.4234,144.34,144.26,0.12549]
[1723790422345,23.3515,144.34,144.26,0.25098]
[1723790422843,23.3515,144.34,144.26,0.12549]
[1723790422844,0.12549,144.33,144.26,0.12549]
[1723790423014,33.06958,144.33,144.24,2.08187522]
[1723790423349,33.06958,144.33,144.25,20.0]
[1723790424812,26.01549,144.33,144.27,20.0]
[1723790425516,16.4234,144.34,144.29,20.0]
[1723790425831,16.4234,144.34,144.27,20.0]
[1723790426016,16.4234,144.34,144.28,0.25098]
[1723790426212,16.4234,144.34,144.26,20.0]
[1723790426420,0.12549,144.33,144.26,20.0]
[1723790426824,0.12549,144.33,144.28,20.0]
[1723790427419,16.4234,144.34,144.28,20.0]
[1723790428644,16.4234,144.34,144.27,0.12549]
[1723790428848,16.4234,144.34,144.27,0.25098]
[1723790429522,16.4234,144.34,144.28,20.0]
[1723790430852,32.94309,144.35,144.28,20.0]
[1723790431018,26.01549,144.35,144.28,20.0]
[1723790431227,20.0,144.34,144.28,20.0]
[1723790434124,20.0,144.34,144.29,0.34747932]
[1723790434326,20.0,144.34,144.28,20.0]
[1723790436044,6.3742,144.37,144.3,20.0]
[1723790436568,6.3742,144.37,144.25,16.66325548]
[1723790436569,25.89,144.31,144.25,13.04803853]
[1723790436747,25.89,144.31,144.24,16.0175]
[1723790437061,25.89,144.31,144.24,18.09959927]
[1723790437349,25.89,144.31,144.26,20.0]
[1723790437547,25.89,144.31,144.24,38.09958071]
[1723790437746,25.89,144.31,144.24,36.0175]
[1723790438061,25.89,144.31,144.26,20.0]
[1723790439534,25.89,144.31,144.25,0.12549]
[1723790439733,25.89,144.31,144.26,20.0]
[1723790440264,16.2229,144.32,144.27,0.12549]
[1723790440435,16.2229,144.32,144.27,0.25098]